bitfinex/quotes_BTCUSD_20250711
["timestamp","ask_amount","ask_price","bid_price","bid_amount"]
[1752231793251,0.55907106,117990.0,117980.0,0.08583291]
[1752231793467,0.55911106,117990.0,117980.0,0.0773569]
[1752231793665,0.42899106,117990.0,117980.0,0.0773569]
[1752231793891,0.55807106,117990.0,117980.0,0.0773569]
[1752231794298,0.55607106,117990.0,117980.0,0.0773569]
[1752231794515,0.56019106,117990.0,117980.0,0.0773569]
[1752231795352,0.56019106,117990.0,117980.0,0.0783569]
[1752231795741,0.99904342,117990.0,117980.0,0.06253]
[1752231796195,0.42484106,117990.0,117980.0,0.06253]
[1752231796358,0.13104,117990.0,117980.0,0.69947978]
[1752231796567,0.13104,117990.0,117980.0,0.26062742]
[1752231796785,0.13104,117990.0,117980.0,0.26062749]
[1752231797140,0.13104,117990.0,117980.0,0.269103]
[1752231799464,0.131,117990.0,117980.0,0.269103]
[1752231799887,0.001,117990.0,117980.0,0.269103]
[1752231800094,0.13096,117990.0,117980.0,0.269103]
[1752231801285,0.53096,117990.0,117980.0,0.269103]
[1752231802227,0.401,117990.0,117980.0,0.269103]
[1752231802400,0.53096,117990.0,117980.0,0.269103]
[1752231802606,0.53092,117990.0,117980.0,0.269103]
[1752231803013,0.401,117990.0,117980.0,0.269103]
[1752231803218,0.53092,117990.0,117980.0,0.269103]
[1752231804064,0.12992,117990.0,117980.0,0.28494597]
[1752231804901,0.52992,117990.0,117980.0,0.28494597]
[1752231805334,0.002,118010.0,118000.0,0.07414835]
[1752231805541,0.21730993,118010.0,118000.0,0.26998727]
[1752231805751,0.61730993,118010.0,118000.0,0.27313572]
[1752231805961,0.53188,118010.0,118000.0,0.27313572]
[1752231806383,0.402,118010.0,118000.0,0.27313572]
[1752231806588,0.53188,118010.0,118000.0,0.27313572]
[1752231807047,0.404,118010.0,118000.0,0.27313572]
[1752231807247,0.53388,118010.0,118000.0,0.27313572]
[1752231807693,0.53488,118010.0,118000.0,0.27313572]
[1752231807910,0.405,118010.0,118000.0,0.27313572]
[1752231808125,0.53488,118010.0,118000.0,0.27313572]
[1752231809598,0.53488,118010.0,118000.0,0.26466165]
[1752231809845,0.53488,118010.0,118000.0,0.27313572]
[1752231810053,0.97373236,118010.0,118000.0,0.27313572]
[1752231811120,0.53488,118010.0,118000.0,0.27313572]
[1752231814411,0.405,118010.0,118000.0,0.27313572]
[1752231814613,0.07271326,118030.0,118020.0,0.19488134]
[1752231814984,0.28802319,118030.0,118020.0,0.27255276]
[1752231815199,0.68802319,118030.0,118020.0,0.27570276]
[1752231815814,0.68817333,118030.0,118020.0,0.27570276]
[1752231816059,0.68817333,118030.0,118020.0,0.27770276]
[1752231816274,0.68817333,118030.0,118020.0,0.27870276]
[1752231817000,0.55829333,118030.0,118020.0,0.27870276]
[1752231817193,0.55829333,118030.0,118020.0,0.27555276]
[1752231817425,0.68817333,118030.0,118020.0,0.27555276]
[1752231817649,0.55829333,118030.0,118020.0,0.27555276]
[1752231817859,0.68817333,118030.0,118020.0,0.27555276]
[1752231818076,0.55829333,118030.0,118020.0,0.27555276]
[1752231818252,0.28817333,118030.0,118020.0,0.27870276]
[1752231818522,0.15829333,118030.0,118020.0,0.27870276]
[1752231818775,0.2027434,118030.0,118020.0,0.27870276]
[1752231818998,0.0728634,118030.0,118020.0,0.71755512]
[1752231819668,0.0728634,118030.0,118020.0,0.71719786]
[1752231820105,0.06270384,118030.0,118020.0,0.71719786]
[1752231820332,0.06270384,118030.0,118020.0,0.81716864]
[1752231820553,0.06270384,118030.0,118020.0,0.74258718]
[1752231820977,0.06270384,118030.0,118020.0,0.74058718]
[1752231821410,0.06370384,118030.0,118020.0,0.74458718]
[1752231821838,0.06270384,118030.0,118020.0,0.74058718]
[1752231822080,0.06270384,118030.0,118020.0,0.73958718]
[1752231822319,0.06370384,118030.0,118020.0,0.74458718]
[1752231822570,0.06370384,118030.0,118020.0,0.74852684]
[1752231822779,0.06370384,118030.0,118020.0,0.74452684]
[1752231823427,0.06370384,118030.0,118020.0,0.31167448]
[1752231823646,0.06370384,118030.0,118020.0,0.75052684]
[1752231824758,0.05354531,118030.0,118020.0,0.75052684]
[1752231826223,0.05354531,118030.0,118020.0,1.08943684]
[1752231827286,1e-08,118030.0,118020.0,1.5282892]
[1752231827499,0.002,118050.0,118040.0,0.20938918]
[1752231827720,0.0020848,118050.0,118040.0,1.58719491]
[1752231827941,0.0020848,118050.0,118040.0,0.71252019]
[1752231828156,0.0042148,118050.0,118040.0,0.60951941]
[1752231828373,0.0020848,118050.0,118040.0,0.59373833]
[1752231828588,0.0020848,118050.0,118040.0,0.59573833]
[1752231828846,0.0020848,118050.0,118040.0,0.59876833]
[1752231829057,0.0020848,118050.0,118040.0,0.60076833]
[1752231829273,0.0042148,118050.0,118040.0,0.59773833]
[1752231829495,0.53164709,118050.0,118040.0,0.52077572]
[1752231829680,0.66148709,118050.0,118040.0,0.52924713]
[1752231829942,0.66148709,118050.0,118040.0,0.55466094]
[1752231830413,0.22263473,118050.0,118040.0,0.55266094]
[1752231830625,0.62263473,118050.0,118040.0,0.55066094]
[1752231830839,0.62263473,118050.0,118040.0,0.55166094]
[1752231832595,0.49279473,118050.0,118040.0,0.55166094]
[1752231832846,0.62259473,118050.0,118040.0,0.55166094]
[1752231833522,0.62259473,118050.0,118040.0,0.55066094]
[1752231834185,0.22259473,118050.0,118040.0,0.55066094]
[1752231834874,0.0020848,118050.0,118040.0,1.04206491]
[1752231835080,0.0040848,118050.0,118040.0,0.61421094]
[1752231835305,0.0040848,118050.0,118040.0,0.74401094]
[1752231835758,0.0020848,118050.0,118040.0,0.74401094]
[1752231836022,0.0020848,118050.0,118040.0,0.82944087]
[1752231836242,0.0020848,118050.0,118040.0,1.25729484]
[1752231838451,0.0020848,118050.0,118040.0,1.27183569]
[1752231839340,0.0020848,118050.0,118040.0,0.84398172]
[1752231842219,0.0020848,118050.0,118040.0,0.82944087]
[1752231842436,0.0073648,118050.0,118040.0,0.58248094]
[1752231843516,0.0073648,118050.0,118040.0,0.52524713]
[1752231843733,0.0073648,118050.0,118040.0,0.53371833]
[1752231843947,0.0093648,118050.0,118040.0,0.53371833]
[1752231844834,0.0103648,118050.0,118040.0,0.53371833]
[1752231845947,0.0050848,118050.0,118040.0,0.59566833]
[1752231846822,0.43821877,118050.0,118040.0,0.53371854]
[1752231847039,0.43621877,118050.0,118040.0,0.53371854]
[1752231847261,0.0083648,118050.0,118040.0,0.52524727]
[1752231847499,0.0083648,118050.0,118040.0,0.54218988]
[1752231848399,0.0073648,118050.0,118040.0,0.54219002]
[1752231848616,0.0073648,118050.0,118040.0,0.55066129]
[1752231848832,0.0073648,118050.0,118040.0,0.54218974]
[1752231849279,0.0073648,118050.0,118040.0,0.52524727]
[1752231849499,0.0103648,118050.0,118040.0,0.51677579]
[1752231849721,0.0103648,118050.0,118040.0,0.53371883]
[1752231849937,0.0103648,118050.0,118040.0,0.52524735]
[1752231850181,0.0103648,118050.0,118040.0,0.51677579]
[1752231850389,0.4103648,118050.0,118040.0,0.3473417]
[1752231850634,0.49579473,118050.0,118040.0,0.33887]
[1752231850837,0.9236487,118050.0,118040.0,0.50830409]
[1752231851050,0.49579473,118050.0,118040.0,0.51677572]
[1752231851272,0.49579473,118050.0,118040.0,0.33887]
[1752231851480,0.49579473,118050.0,118040.0,0.23887]
[1752231852996,0.49579473,118050.0,118040.0,0.2473417]
[1752231853204,0.49579473,118050.0,118040.0,0.25581333]
[1752231853421,0.49579473,118050.0,118040.0,0.23887]
[1752231855086,0.49579473,118050.0,118040.0,0.41677579]
[1752231855492,0.49579473,118050.0,118040.0,0.4421901]
[1752231855726,0.49579473,118050.0,118040.0,0.4506613]
[1752231856426,0.0050848,118050.0,118040.0,1.07272527]
[1752231857136,0.0050848,118050.0,118040.0,0.6448713]
[1752231857344,0.0030848,118050.0,118040.0,0.6448713]
[1752231857760,0.0020848,118050.0,118040.0,0.6448713]
[1752231859084,0.0020848,118050.0,118040.0,0.6416813]
[1752231859299,0.0040648,118050.0,118040.0,0.4830813]
[1752231859519,0.0072648,118050.0,118040.0,0.6108613]
[1752231859953,0.0072648,118050.0,118040.0,0.6128813]
[1752231860174,0.0072648,118050.0,118040.0,0.6418813]
[1752231860385,0.0071848,118050.0,118040.0,0.5120813]
[1752231860782,0.0071848,118050.0,118040.0,0.4810613]
[1752231861044,0.0071848,118050.0,118040.0,0.44219046]
[1752231861263,0.0081848,118050.0,118040.0,0.45066137]
[1752231861700,0.0101848,118050.0,118040.0,0.45066137]
[1752231861960,0.0101848,118050.0,118040.0,0.43371869]
[1752231862172,0.1389848,118050.0,118040.0,0.44219003]
[1752231862399,0.1409848,118050.0,118040.0,0.43371876]
[1752231862621,0.1409848,118050.0,118040.0,0.42524728]
[1752231862844,0.1409848,118050.0,118040.0,0.43371876]
[1752231863055,0.5389848,118050.0,118040.0,0.45066123]
[1752231863300,0.5419848,118050.0,118040.0,0.45066123]
[1752231864629,0.5419848,118050.0,118040.0,0.44219003]
[1752231864843,0.5419848,118050.0,118040.0,0.45066123]
[1752231865478,0.4070048,118050.0,118040.0,0.48188123]
[1752231865683,0.1368048,118050.0,118040.0,0.51487123]
[1752231865929,0.0070048,118050.0,118040.0,0.51487123]
[1752231866151,0.0070048,118050.0,118040.0,1.09564859]
[1752231867040,0.0040048,118050.0,118040.0,1.09564859]
[1752231867463,0.0020048,118050.0,118040.0,1.09564859]
[1752231868122,0.0020048,118050.0,118040.0,1.22544859]
[1752231868381,0.0020048,118050.0,118040.0,1.15795513]
[1752231869892,0.0020048,118050.0,118040.0,0.73010116]
[1752231872262,0.00019045,118050.0,118040.0,0.73010116]
[1752231872488,0.00019045,118050.0,118040.0,0.64467123]
[1752231872844,0.1322,118070.0,118060.0,0.17787557]
[1752231872845,0.12524227,118070.0,118060.0,0.17787557]
[1752231873051,0.12722227,118070.0,118060.0,0.20218316]
[1752231873266,0.12722227,118070.0,118060.0,0.19371304]
[1752231873460,0.12722227,118070.0,118060.0,0.20218316]
[1752231873684,0.12722227,118070.0,118060.0,0.19371311]
[1752231874014,0.12722227,118070.0,118060.0,0.2021833]
[1752231874232,0.12722227,118070.0,118060.0,0.01583747]
[1752231874448,0.12922227,118070.0,118060.0,0.01583747]
[1752231874661,0.13222227,118070.0,118060.0,0.01583747]
[1752231874875,0.16542227,118070.0,118060.0,0.01583747]
[1752231877328,0.13542227,118070.0,118060.0,0.01583747]
[1752231877530,0.13542227,118070.0,118060.0,0.02430773]
[1752231878368,0.13542227,118070.0,118060.0,0.01583747]
[1752231878595,0.13542227,118070.0,118060.0,0.02430773]
[1752231878799,0.13542227,118070.0,118060.0,0.19371311]
[1752231879001,0.13542227,118070.0,118060.0,0.02430773]
[1752231879144,0.13542227,118070.0,118060.0,0.19371311]
[1752231879749,0.13542227,118070.0,118060.0,0.01583747]
[1752231880172,0.2208522,118070.0,118060.0,0.01583747]
[1752231880384,0.2498522,118070.0,118060.0,0.01583747]
[1752231882801,0.23969409,118070.0,118060.0,0.01583747]
[1752231884099,0.63969409,118070.0,118060.0,0.01583747]
[1752231884966,1.04876891,118070.0,118060.0,0.01583747]
[1752231885662,0.22216993,118070.0,118060.0,0.21065293]
[1752231885877,0.13674,118070.0,118060.0,0.28152269]
[1752231886370,0.53674,118070.0,118060.0,0.28152269]
[1752231887013,0.53674,118070.0,118060.0,0.25062269]
[1752231887666,0.13674,118070.0,118060.0,0.25062269]
[1752231887876,0.13674,118070.0,118060.0,0.23158302]
[1752231888717,0.13674,118070.0,118060.0,0.24005307]
[1752231888922,0.13674,118070.0,118060.0,0.24852298]
[1752231889133,0.13674,118070.0,118060.0,0.24852262]
[1752231889548,0.13674,118070.0,118060.0,0.25699238]
[1752231889973,0.13674,118070.0,118060.0,0.28869238]
[1752231890182,0.13674,118070.0,118060.0,0.29182238]
[1752231890428,0.13674,118070.0,118060.0,0.29183273]
[1752231891073,0.00698,118070.0,118060.0,0.29183273]
[1752231891326,0.13476,118070.0,118060.0,0.29183273]
[1752231892826,0.12460266,118070.0,118060.0,0.29183273]
[1752231893278,0.12460266,118070.0,118060.0,0.29182715]
[1752231894229,0.12460266,118070.0,118060.0,0.27598491]
[1752231895066,0.40322,118080.0,118070.0,0.00846955]
[1752231895263,0.62049993,118080.0,118070.0,0.18523717]
[1752231895466,0.62049993,118080.0,118070.0,0.20217605]
[1752231895704,0.48751993,118080.0,118070.0,0.2191145]
[1752231895923,0.4,118080.0,118070.0,0.29471354]
[1752231896217,0.53185,118080.0,118070.0,0.28624464]
[1752231896457,0.53185,118080.0,118070.0,0.29471383]
[1752231896631,0.40209,118080.0,118070.0,0.29471339]
[1752231896870,0.53285,118080.0,118070.0,0.29471339]
[1752231899219,0.401,118080.0,118070.0,0.29471339]
[1752231899422,0.53076,118080.0,118070.0,0.29471339]
[1752231899820,0.53076,118080.0,118070.0,0.73349339]
[1752231901624,0.53076,118080.0,118070.0,0.71655502]
[1752231901823,0.53285,118080.0,118070.0,0.7080859]
[1752231902035,0.53285,118080.0,118070.0,0.71655516]
[1752231902240,0.53285,118080.0,118070.0,0.52175464]
[1752231902448,0.96378064,118080.0,118070.0,0.45462464]
[1752231902660,1.04921057,118080.0,118070.0,0.45462464]
[1752231902891,0.54875057,118080.0,118070.0,0.45462464]
[1752231903097,1.04747057,118080.0,118070.0,0.45462464]
[1752231904607,1.06201142,118080.0,118070.0,0.45462464]
[1752231905049,1.15554462,118080.0,118070.0,0.45462464]
[1752231905262,0.48551064,118050.0,118040.0,0.002]
[1752231905504,0.70275057,118050.0,118040.0,0.002]
[1752231905718,1.04597057,118050.0,118040.0,0.002]
[1752231905936,1.80911114,118050.0,118040.0,0.002]
[1752231906141,0.82671064,118030.0,118020.0,0.002]
[1752231906358,1.17371057,118030.0,118020.0,0.0020848]
[1752231906570,1.17693057,118030.0,118020.0,0.0020848]
[1752231907006,1.18575151,118030.0,118020.0,0.0020848]
[1752231909197,1.15805151,118030.0,118020.0,0.0020848]
[1752231909424,1.12775151,118030.0,118020.0,0.0020848]
[1752231909628,0.57028087,118030.0,118020.0,0.0020848]
[1752231910059,0.57032087,118030.0,118020.0,0.0020848]
[1752231910489,0.43734087,118030.0,118020.0,0.0020848]
[1752231910706,0.43734087,118030.0,118020.0,0.18210074]
[1752231910902,0.43734087,118030.0,118020.0,0.21100074]
[1752231911122,0.56710087,118030.0,118020.0,0.0330648]
[1752231911322,0.43734087,118030.0,118020.0,0.0330648]
[1752231911528,0.56710087,118030.0,118020.0,0.04153786]
[1752231911739,0.56710087,118030.0,118020.0,0.0330648]
[1752231912021,0.43734087,118030.0,118020.0,0.04153794]
[1752231912197,0.56710087,118030.0,118020.0,0.0330648]
[1752231913081,0.43734087,118030.0,118020.0,0.04153794]
[1752231913305,0.56710087,118030.0,118020.0,0.0330648]
[1752231915508,0.56710087,118030.0,118020.0,0.21100066]
[1752231915726,0.56710087,118030.0,118020.0,0.21947365]
[1752231915989,0.43734087,118030.0,118020.0,0.21100066]
[1752231916211,0.43734087,118030.0,118020.0,0.04153794]
[1752231916442,0.56710087,118030.0,118020.0,0.21100074]
[1752231916878,0.56710087,118030.0,118020.0,0.04153794]
[1752231917100,0.56710087,118030.0,118020.0,0.04884883]
[1752231917338,0.56710087,118030.0,118020.0,0.01994883]
[1752231917555,0.43734087,118030.0,118020.0,0.01786883]
[1752231917763,0.57034087,118030.0,118020.0,0.01786883]
[1752231918195,0.44058087,118030.0,118020.0,0.01786883]
[1752231918429,0.86829151,118030.0,118020.0,0.01786883]
[1752231918656,0.99805151,118030.0,118020.0,0.01786883]
[1752231922650,1.02635151,118030.0,118020.0,0.01786883]
[1752231922871,1.11178144,118030.0,118020.0,0.01786883]
[1752231923081,1.02635151,118030.0,118020.0,0.01786883]
[1752231925130,1.03712399,118030.0,118020.0,0.01786883]
[1752231931798,1.00882399,118030.0,118020.0,0.01786883]
[1752231933788,0.87906399,118030.0,118020.0,0.04746883]
[1752231934007,1.00558399,118030.0,118020.0,0.07586883]
[1752231934226,0.87582399,118030.0,118020.0,0.07586883]
[1752231934455,1.00558399,118030.0,118020.0,0.07586883]
[1752231934905,1.00882399,118030.0,118020.0,0.07586883]
[1752231935133,1.00882399,118030.0,118020.0,0.04746883]
[1752231935349,1.00882399,118030.0,118020.0,0.0475228]
[1752231935786,1.00882399,118030.0,118020.0,0.0179228]
[1752231937311,1.03652399,118030.0,118020.0,0.0179228]
[1752231938514,1.00882399,118030.0,118020.0,0.0179228]
[1752231940356,0.87906399,118030.0,118020.0,0.0179228]
[1752231940569,1.00882399,118030.0,118020.0,0.0179228]
[1752231944414,1.03962399,118030.0,118020.0,0.0179228]
[1752231944827,1.02946131,118030.0,118020.0,0.0179228]
[1752231945504,0.99866131,118030.0,118020.0,0.0179228]
[1752231949546,1.02333975,118030.0,118020.0,0.0179228]
[1752231949762,1.08253975,118030.0,118020.0,0.0179228]
[1752231949985,1.10796375,118030.0,118020.0,0.0179228]
[1752231950216,1.08328531,118030.0,118020.0,0.0179228]
[1752231950653,1.08528531,118030.0,118020.0,0.0179228]
[1752231951525,1.08528531,118030.0,118020.0,0.00945353]
[1752231951736,1.08428531,118030.0,118020.0,0.00945353]
[1752231952177,1.08728531,118030.0,118020.0,0.00098426]
[1752231952608,0.59,118020.0,118000.0,0.1309]
[1752231952827,0.99571305,118010.0,118000.0,0.1605]
[1752231954816,0.99884305,118010.0,118000.0,0.1]
[1752231956265,1.00084305,118010.0,118000.0,0.1]
[1752231958681,1.02626905,118010.0,118000.0,0.1]
[1752231962103,1.49605217,118010.0,118000.0,0.10792366]
[1752231962309,1.05756905,118010.0,118000.0,0.10792366]
[1752231962553,1.02626905,118010.0,118000.0,0.1]
[1752231963621,1.05576905,118010.0,118000.0,0.1]
[1752231964038,1.49425217,118010.0,118000.0,0.1]
[1752231964665,1.49425217,118010.0,118000.0,0.11584091]
[1752231965319,1.49425217,118010.0,118000.0,0.11583974]
[1752231966467,1.53232538,118010.0,118000.0,0.11528955]
[1752231966678,1.58433193,118010.0,118000.0,0.11528955]
[1752231966915,1.65634627,118010.0,118000.0,0.10681906]
[1752231967135,1.66481991,118010.0,118000.0,0.10681906]
[1752231967353,1.76172355,118010.0,118000.0,0.09834857]
[1752231967805,1.60654292,118010.0,118000.0,0.0898763]
[1752231968027,1.60654292,118010.0,118000.0,0.08140242]
[1752231968028,1.64143943,118010.0,118000.0,0.08140242]
[1752231968244,1.64991278,118010.0,118000.0,0.08140242]
[1752231968478,1.65191278,118010.0,118000.0,0.07293015]
[1752231968928,1.64991278,118010.0,118000.0,0.06445788]
[1752231969156,1.64143943,118010.0,118000.0,0.06445788]
[1752231969370,1.64991278,118010.0,118000.0,0.05598561]
[1752231969582,0.94404225,118010.0,118000.0,0.05598561]
[1752231969848,1.28030905,118010.0,118000.0,0.08528561]
[1752231970299,1.28030905,118010.0,118000.0,0.05598561]
[1752231970727,1.71879217,118010.0,118000.0,0.05598561]
[1752231970939,1.28030905,118010.0,118000.0,0.05598561]
[1752231971138,1.71879217,118010.0,118000.0,0.05598561]
[1752231971753,1.7477807,118010.0,118000.0,0.05598561]
[1752231971958,1.87899476,118010.0,118000.0,0.04751334]
[1752231972176,1.88746811,118010.0,118000.0,0.03904107]
[1752231972613,1.91845073,118010.0,118000.0,0.0305688]
[1752231972825,1.90997724,118010.0,118000.0,0.0305688]
[1752231973053,1.90997724,118010.0,118000.0,0.02209653]
[1752231973054,1.88946228,118010.0,118000.0,0.02209653]
[1752231973262,1.87251536,118010.0,118000.0,0.02209653]
[1752231973463,1.73424215,118010.0,118000.0,0.01362426]
[1752231973908,1.71883217,118010.0,118000.0,0.00515199]
[1752231974640,1.28034905,118010.0,118000.0,0.00515199]
[1752231974859,0.84186593,118010.0,118000.0,0.06375199]
[1752231975090,1.28034905,118010.0,118000.0,0.06375199]
[1752231975961,1.28034905,118010.0,118000.0,0.03445199]
[1752231977432,1.15050905,118010.0,118000.0,0.03445199]
[1752231977647,1.28042905,118010.0,118000.0,0.03445199]
[1752231978079,1.75041217,118010.0,118000.0,0.00515199]
[1752231978956,1.71891217,118010.0,118000.0,0.00515199]
[1752231983051,1.72738552,118010.0,118000.0,0.00515199]
[1752231983673,1.72738545,118010.0,118000.0,0.00515199]
[1752231983930,1.81281538,118010.0,118000.0,0.00515199]
[1752231984562,1.72738545,118010.0,118000.0,0.00515199]
[1752231984769,1.72738545,118010.0,117990.0,0.0591]
[1752231984969,1.09223617,118000.0,117990.0,0.0591]
[1752231985234,0.59,117990.0,117980.0,0.062]
[1752231985449,0.59,117990.0,117980.0,0.06399]
[1752231985450,1.24583305,117990.0,117980.0,0.06399]
[1752231985663,1.24583305,117990.0,117980.0,0.06697]
[1752231985881,1.24583305,117990.0,117980.0,0.09074608]
[1752231986533,1.33126298,117990.0,117980.0,0.09074608]
[1752231986987,1.27126305,117990.0,117980.0,0.09074608]
[1752231987852,1.27226305,117990.0,117980.0,0.09074608]
[1752231988281,1.02126305,117990.0,117980.0,0.09074608]
[1752231988505,0.58277993,117990.0,117980.0,0.09074608]
[1752231988725,0.58477993,117990.0,117980.0,0.09074608]
[1752231988994,1.02118305,117990.0,117980.0,0.09074608]
[1752231989206,1.0471395,117990.0,117980.0,0.09074608]
[1752231989830,1.0481395,117990.0,117980.0,0.09074608]
[1752231990863,0.60965638,117990.0,117980.0,0.09074608]
[1752231991070,1.0481395,117990.0,117980.0,0.09074608]
[1752231995201,1.0502195,117990.0,117980.0,0.08776608]
[1752231995411,1.0502195,117990.0,117980.0,0.09074608]
[1752231996665,0.48189638,117990.0,117980.0,0.09074608]
[1752231996874,1.0419192,117990.0,117980.0,0.09074608]
[1752232001450,1.0419192,117990.0,117980.0,0.09075775]
[1752232001861,1.12734913,117990.0,117980.0,0.09075775]
[1752232002277,1.0419192,117990.0,117980.0,0.09075775]
[1752232002897,1.0419192,117990.0,117980.0,0.09075768]
[1752232004312,1.0419192,117990.0,117980.0,0.09075763]
[1752232008139,1.01596275,117990.0,117980.0,0.09075763]
[1752232008556,1.01596275,117990.0,117980.0,0.08777763]
[1752232009402,0.88616275,117990.0,117980.0,0.08578763]
[1752232009603,1.10432268,117990.0,117980.0,0.08578763]
[1752232009957,1.10432268,117990.0,117980.0,0.02578763]
[1752232009958,1.40464531,117990.0,117980.0,0.02578763]
[1752232010187,1.47848601,117990.0,117980.0,0.02578763]
[1752232010541,1.46153601,117990.0,117980.0,0.02578763]
[1752232010745,1.4399108,117990.0,117980.0,0.02578763]
[1752232011099,1.43143601,117990.0,117980.0,0.02578763]
[1752232011484,1.34600608,117990.0,117980.0,0.02578763]
[1752232012607,1.33753144,117990.0,117980.0,0.02578763]
[1752232012832,1.30833144,117990.0,117980.0,0.02578763]
[1752232014386,1.17853144,117990.0,117980.0,0.02578763]
[1752232014603,1.31680615,117990.0,117980.0,0.02578554]
[1752232015036,1.43363608,117990.0,117980.0,0.02578554]
[1752232015277,1.46440627,117990.0,117980.0,0.02578554]
[1752232015514,1.49636849,117990.0,117980.0,0.02578554]
[1752232015777,1.54461929,117990.0,117980.0,0.02578554]
[1752232016263,1.536144,117990.0,117980.0,0.02578554]
[1752232016495,1.54461929,117990.0,117980.0,0.02578554]
[1752232016722,1.52766885,117990.0,117980.0,0.02578554]
[1752232017193,1.53614407,117990.0,117980.0,0.02578554]
[1752232017647,1.70564996,117990.0,117980.0,0.02578554]
[1752232018108,1.51919378,117990.0,117980.0,0.02578554]
[1752232018359,1.49636849,117990.0,117980.0,0.02578554]
[1752232018583,1.48789349,117990.0,117980.0,0.02578554]
[1752232018794,1.3939887,117990.0,117980.0,0.02578554]
[1752232019015,1.37106356,117990.0,117980.0,0.02578554]
[1752232019233,1.37106349,117990.0,117980.0,0.02578554]
[1752232019480,1.3625887,117990.0,117980.0,0.02578554]
[1752232019686,1.37106349,117990.0,117980.0,0.02578554]
[1752232019896,1.3625887,117990.0,117980.0,0.02578554]
[1752232020099,1.37106349,117990.0,117980.0,0.02578554]
[1752232020954,1.37953835,117990.0,117980.0,0.02578554]
[1752232021168,1.46018275,117990.0,117980.0,0.02578554]
[1752232021383,1.49885782,117990.0,117980.0,0.02578186]
[1752232021588,1.49885775,117990.0,117980.0,0.02578186]
[1752232022103,1.5073329,117990.0,117980.0,0.02578186]
[1752232022307,1.69966458,117990.0,117980.0,0.02578186]
[1752232022510,1.70813987,117990.0,117980.0,0.02578186]
[1752232022962,1.70813987,117990.0,117980.0,0.02578069]
[1752232023133,2.05750373,117990.0,117980.0,0.01730696]
[1752232023543,2.05750373,117990.0,117980.0,0.00883323]
[1752232023544,1.61054561,117990.0,117980.0,0.00883323]
[1752232023951,1.61054561,117990.0,117980.0,0.0003595]
[1752232024364,1.02848312,117970.0,117960.0,0.0651]
[1752232024571,1.29564997,117970.0,117960.0,0.0651]
[1752232024781,1.29777997,117970.0,117960.0,0.06717]
[1752232026239,1.29777997,117970.0,117960.0,0.06817]
[1752232027006,1.29777997,117970.0,117960.0,0.06717]
[1752232027210,1.30077997,117970.0,117960.0,0.06717]
[1752232027692,1.30077997,117970.0,117960.0,0.07016]
[1752232028528,0.73249685,117970.0,117960.0,0.07016]
[1752232028749,1.30077997,117970.0,117960.0,0.07016]
[1752232029744,0.86229685,117970.0,117960.0,0.07016]
[1752232030105,1.30077997,117970.0,117960.0,0.07016]
[1752232032917,1.30077997,117970.0,117960.0,0.06717]
[1752232033281,1.30077997,117970.0,117960.0,0.0672548]
[1752232034278,1.78442218,117970.0,117960.0,0.0020848]
[1752232034458,1.8013747,117970.0,117960.0,0.0020848]
[1752232034694,1.80985114,117970.0,117960.0,0.0020848]
[1752232034906,1.7759461,117970.0,117960.0,0.0020848]
[1752232035117,1.8013831,117970.0,117960.0,0.0020848]
[1752232035374,1.8013831,117970.0,117960.0,0.0324848]
[1752232035375,1.71595317,117970.0,117960.0,0.0324848]
[1752232035796,1.71495317,117970.0,117960.0,0.0324848]
[1752232036030,1.71795317,117970.0,117960.0,0.0483424]
[1752232036238,1.72642925,117970.0,117960.0,0.05627142]
[1752232036446,1.73490555,117970.0,117960.0,0.05627142]
[1752232036675,1.79068673,117970.0,117960.0,0.02587142]
[1752232037136,1.79468673,117970.0,117960.0,0.02587142]
[1752232037764,1.73690555,117970.0,117960.0,0.02587277]
[1752232038673,1.73690547,117970.0,117960.0,0.02587277]
[1752232038915,1.72842925,117970.0,117960.0,0.05497277]
[1752232039137,1.71995317,117970.0,117960.0,0.05497277]
[1752232039357,1.72842925,117970.0,117960.0,0.05497277]
[1752232039546,1.73690547,117970.0,117960.0,0.05497277]
[1752232039794,1.7369054,117970.0,117960.0,0.05497277]
[1752232040230,1.82233533,117970.0,117960.0,0.05497277]
[1752232040444,1.86543504,117970.0,117960.0,0.05497277]
[1752232040667,1.87391162,117970.0,117960.0,0.05497277]
[1752232040878,1.78000511,117970.0,117960.0,0.02587277]
[1752232041100,2.00762863,117970.0,117960.0,0.0173982]
[1752232041530,2.03245373,117970.0,117960.0,0.00892363]
[1752232041740,2.03245373,117970.0,117960.0,0.00044906]
[1752232041949,2.11788366,117970.0,117960.0,0.00044906]
[1752232042165,0.59,117950.0,117940.0,0.06693]
[1752232042373,1.24371305,117950.0,117940.0,0.06950752]
[1752232042958,1.25432064,117950.0,117940.0,0.06950752]
[1752232043163,1.24584305,117950.0,117940.0,0.06950752]
[1752232043577,0.80835993,117950.0,117940.0,0.06950752]
[1752232043779,1.27228205,117950.0,117940.0,0.06950752]
[1752232044397,1.28102376,117950.0,117940.0,0.06950752]
[1752232044598,1.28202376,117950.0,117940.0,0.06950752]
[1752232046259,1.28202376,117950.0,117940.0,0.06627752]
[1752232046453,1.54549458,117950.0,117940.0,0.06627752]
[1752232046662,1.49787985,117950.0,117940.0,0.03449752]
[1752232047769,1.49787985,117950.0,117940.0,0.00249752]
[1752232047986,1.49687942,117950.0,117940.0,0.00249752]
[1752232048201,1.49068856,117950.0,117940.0,0.03189752]
[1752232049449,1.48221097,117950.0,117940.0,0.03189752]
[1752232049654,1.48121097,117950.0,117940.0,0.03189752]
[1752232049860,1.48321097,117950.0,117940.0,0.03189752]
[1752232052602,1.5686409,117950.0,117940.0,0.03189752]
[1752232052796,1.48321097,117950.0,117940.0,0.03189752]
[1752232053380,1.48321097,117950.0,117940.0,0.03981704]
[1752232054241,1.48321097,117950.0,117940.0,0.0556565]
[1752232054450,1.47473317,117950.0,117940.0,0.0262565]
[1752232054658,1.47473317,117950.0,117940.0,0.01777982]
[1752232055054,1.47473317,117950.0,117940.0,0.00930314]
[1752232055846,1.48079607,117950.0,117940.0,0.00082646]
[1752232056046,2.03107919,117950.0,117940.0,0.00082646]
[1752232056248,0.44502979,117930.0,117920.0,0.0632]
[1752232056458,1.66103657,117930.0,117920.0,0.0632]
[1752232056818,1.66951588,117930.0,117920.0,0.0632]
[1752232057027,1.69496088,117930.0,117920.0,0.0632]
[1752232057207,1.68648157,117930.0,117920.0,0.0632]
[1752232057433,1.69596096,117930.0,117920.0,0.0632]
[1752232058315,1.70444049,117930.0,117920.0,0.0632]
[1752232058743,1.69915096,117930.0,117920.0,0.0632]
[1752232059414,1.72405656,117930.0,117920.0,0.0632]
[1752232059825,1.73253602,117930.0,117920.0,0.0632]
[1752232060488,1.72405656,117930.0,117920.0,0.0632]
[1752232060698,1.73253602,117930.0,117920.0,0.0632]
[1752232060921,1.72405656,117930.0,117920.0,0.0632]
[1752232061149,1.73253602,117930.0,117920.0,0.0632]
[1752232061409,1.72405656,117930.0,117920.0,0.0632]